Body Name,Body,Service Level,Expense Type,Expense Code,Narrative,Date,Transaction Number,Amount,Capital and Revenue,Supplier Name,Supplier ID
South Ribble Council,http://statistics.data.gov.uk/doc/local-authority/30UN,Housing,Cap Grant- Improve Grants,C570,DFG WORKS AT ADDRESS REDACTED,14/09/2016,0000426728,"1,200.00",Revenue,ABBI PROPERTY SERVICES LTD,131357
South Ribble Council,http://statistics.data.gov.uk/doc/local-authority/30UN,Area 2 - Waste Transport/Eastern & Central Teams,Agency Fees,1121,HIRE OF PERSONNEL - NAME REDACTED (39 HOURS PER WEEK FOR 8 WEEKS) @9.95/HOUR,14/09/2016,0000426644,373.13,Revenue,ACE PERSONNEL,00015095
South Ribble Council,http://statistics.data.gov.uk/doc/local-authority/30UN,Area 2 - Waste Transport/Eastern & Central Teams,Agency Fees,1121,HIRE OF PERSONNEL - NAME REDACTED (TO WORK 22/8/2016 UNTIL 14/10/2016 - 8 WEEKS) (39 HOURS PER WEEK ,14/09/2016,0000426663,362.70,Revenue,ACE PERSONNEL,00015095
South Ribble Council,http://statistics.data.gov.uk/doc/local-authority/30UN,Area 2 - Waste Transport/Eastern & Central Teams,Agency Fees,1121,HIRE OF PERSONNEL - NAME REDACTED (TO WORK 22/8/2016 UNTIL 14/10/2016 - 8 WEEKS) (39 HOURS PER WEEK ,14/09/2016,0000426713,288.30,Revenue,ACE PERSONNEL,00015095
South Ribble Council,http://statistics.data.gov.uk/doc/local-authority/30UN,Area 2 - Waste Transport/Eastern & Central Teams,Agency Fees,1121,HIRE OF PERSONNEL - NAME REDACTED (39 HOURS PER WEEK FOR 8 WEEKS) @9.95/HOUR,14/09/2016,0000426719,308.45,Revenue,ACE PERSONNEL,00015095
South Ribble Council,http://statistics.data.gov.uk/doc/local-authority/30UN,Area 2 - Waste Transport/Eastern & Central Teams,Agency Fees,1121,HIRE OF PERSONNEL - NAME REDACTED (TO WORK 22/8/2016 UNTIL 14/10/2016 - 8 WEEKS) (39 HOURS PER WEEK ,28/09/2016,0000427005,362.70,Revenue,ACE PERSONNEL,00015095
South Ribble Council,http://statistics.data.gov.uk/doc/local-authority/30UN,Area 2 - Waste Transport/Eastern & Central Teams,Agency Fees,1121,HIRE OF PERSONNEL - NAME REDACTED (39 HOURS PER WEEK FOR 8 WEEKS) @9.95/HOUR,28/09/2016,0000427012,388.05,Revenue,ACE PERSONNEL,00015095
South Ribble Council,http://statistics.data.gov.uk/doc/local-authority/30UN,Property Services,Rep & Maint Premises,2020,conduct the annual window cleaning at the Civic Centre 2016 / 2017. The internal windows to be completed over the weekend ,14/09/2016,0000426729,"1,580.00",Revenue,ACS SPECIALIST CLEANING LTD,00099752
South Ribble Council,http://statistics.data.gov.uk/doc/local-authority/30UN,Area 2 - Waste Transport/Eastern & Central Teams,External Contractors Charges,4570,SPEC REPAIR - JFC7246 - AE14AYG,21/09/2016,0000426821,308.25,Revenue,AEBI SCHMIDT UK LTD,00085672
South Ribble Council,http://statistics.data.gov.uk/doc/local-authority/30UN,Shared Assurance Services,Consultancy Fees,4548,2nd Year Annual Registration and Surveillance Visit VAT Value 158.00,28/09/2016,0000427007,790.00,Revenue,ALCUMUS ISOQAR LTD,131571
South Ribble Council,http://statistics.data.gov.uk/doc/local-authority/30UN,Revenues Plus,Financial,4811,PO Trans,07/09/2016,0000426572,"1,166.67",Revenue,ALLPAY LTD,00122276
South Ribble Council,http://statistics.data.gov.uk/doc/local-authority/30UN,Revenues Plus,Financial,4811,paypoint trans,07/09/2016,0000426572,171.30,Revenue,ALLPAY LTD,00122276
South Ribble Council,http://statistics.data.gov.uk/doc/local-authority/30UN,Revenues Plus,Financial,4811,webconnect,07/09/2016,0000426572,46.05,Revenue,ALLPAY LTD,00122276
South Ribble Council,http://statistics.data.gov.uk/doc/local-authority/30UN,Housing,Cap Grant- Improve Grants,C570,DFG WORKS AT ADDRESS REDACTED,14/09/2016,0000426680,"5,465.00",Revenue,APG DOMESTIC SERVICES,00061463
South Ribble Council,http://statistics.data.gov.uk/doc/local-authority/30UN,Housing,Contributions,4730,Supply and install gas fire as per your quote of 593.00 plus VAT,28/09/2016,0000426921,593.00,Revenue,APG DOMESTIC SERVICES,00061463
South Ribble Council,http://statistics.data.gov.uk/doc/local-authority/30UN,Area 1 - Penwortham Western Parishes,External Contractors Charges,4570,Repairs to bus shelters 1. Liverpool Road 2. Pope Lane,14/09/2016,0000425470,425.00,Revenue,ARK WELDING LTD,130946
South Ribble Council,http://statistics.data.gov.uk/doc/local-authority/30UN,Area 1 - Penwortham Western Parishes,External Contractors Charges,4570,Refurbishment of bamber bridge cast iron sign + post,07/09/2016,0000426294,300.00,Revenue,ARK WELDING LTD,130946
South Ribble Council,http://statistics.data.gov.uk/doc/local-authority/30UN,Development Enterprise & Comm Mgnt,Other Misc,4851,"Consultancy fees as per Contract 1st of June and subsequent letter 18th May Co-Location Project June 2016 - 2000 July 2016 ",21/09/2016,0000426916,"1,500.00",Revenue,ARMSTRONG CONSULTING,131444
South Ribble Council,http://statistics.data.gov.uk/doc/local-authority/30UN,HR & Communications,Recruitment Expenses,1500,ONLINE ADVERT FOR CIOB PROPERTY MAINTENANCE POSITION AUGUST 2016,23/09/2016,0000426950,380.00,Revenue,ATOM PUBLISHING,132078
South Ribble Council,http://statistics.data.gov.uk/doc/local-authority/30UN,Property Services,Capital Expenditure,C230,Completion of electrical works for the electrical upgrade and roofing works to the Civic Centre as per quotation ref 52-09,07/09/2016,0000426558,865.99,Revenue,BELEC ELECTRICAL LTD,130290
South Ribble Council,http://statistics.data.gov.uk/doc/local-authority/30UN,Property Services,Rep & Maint Premises,2020,Carry out the following work at Moss Side Depot - supply cable & materials install an electrical supply newly installed lighting co,14/09/2016,0000426774,"1,629.29",Revenue,BELEC ELECTRICAL LTD,130290
South Ribble Council,http://statistics.data.gov.uk/doc/local-authority/30UN,Property Services,Rep & Maint Premises,2020,Moss Side Depot - supply cable & materials to install an electrical supply to the newly installed lighting,21/09/2016,0000426914,854.07,Revenue,BELEC ELECTRICAL LTD,130290
South Ribble Council,http://statistics.data.gov.uk/doc/local-authority/30UN,Property Services,Rep & Maint Premises,2020,"Bamber Bridge Leisure Centre on 8th September 2016, disconnect the electrics to 3 x air conditioning units & extend electrical ",30/09/2016,0000427017,567.96,Revenue,BELEC ELECTRICAL LTD,130290
South Ribble Council,http://statistics.data.gov.uk/doc/local-authority/30UN,Healthy Communities,Other Misc,4851,book 2 places on the National Standard Training course on the 26th July -29th July Manchester reserved NAMES REDACTED,02/09/2016,0000425956,980.00,Revenue,BIKERIGHT LTD,00116570
South Ribble Council,http://statistics.data.gov.uk/doc/local-authority/30UN,Healthy Communities,Other Misc,4851,"QTY Code	Descriptio				1   ST1050	FOOT SPEED LADDER 1   SE8220-BE	ANKLE BALL  BLUE1   SE8220",14/09/2016,0000426735,"1,509.44",Revenue,Bishop Sports & Leisure Ltd,131843
South Ribble Council,http://statistics.data.gov.uk/doc/local-authority/30UN,Development Enterprise & Comm Mgnt,Other Misc,4851,Reserving 8 people on the Boxing Tutor course at South Ribble Tennis Centre 9th September,21/09/2016,0000426800,800.00,Revenue,Boxing Awards Limited,132029
South Ribble Council,http://statistics.data.gov.uk/doc/local-authority/30UN,Healthy Communities,Other Misc,4851,Primary Schools Coaching at various schools April 2016 - July 2016,09/09/2016,0000426686,440.00,Revenue,BROWNEDGE ST MARYS R C HIGH SCHOOL,00015707
South Ribble Council,http://statistics.data.gov.uk/doc/local-authority/30UN,Neighbourhood Admin & Support,Materials General,4040,DERBY SLIMLINE LITTER BIN WITH ASHTRAY (BLUE) - BX45 2596,02/09/2016,0000426484,"4,600.00",Revenue,BROXAP LTD,00028736
South Ribble Council,http://statistics.data.gov.uk/doc/local-authority/30UN,Customer Contact,Clothing- Uniforms & Laundry,4410,provide uniform listed on attached spread sheet ALL UNIFORM TO BE IN BLACK PINSTRIPE Any queries NAME REDACTED,07/09/2016,0000426499,"1,723.45",Revenue,BURLINGTON UNIFORMS LTD,130320
South Ribble Council,http://statistics.data.gov.uk/doc/local-authority/30UN,Area 3 - Parks/Leyland East West,Materials General,4040,5 rolls Fastrack 609 Geotextile 2.25m x 50m Arrow JT21M Staple Gun Tacker Box 5000 Staples,16/09/2016,0000426754,298.95,Revenue,C & W BERRY LTD,00015231
South Ribble Council,http://statistics.data.gov.uk/doc/local-authority/30UN,Area 2 - Waste Transport/Eastern & Central Teams,Contract Hire & Lease Costs,3212,BIN WAGON HIRE,28/09/2016,0000426976,800.00,Revenue,C P DAVIDSON & SONS LTD,00043122
South Ribble Council,http://statistics.data.gov.uk/doc/local-authority/30UN,Environmental Health,Operational Furniture & Equip,4010,Advice on a documented food safety management system as per NAME REDACTED,14/09/2016,0000426567,500.00,Revenue,CAMPDEN BRI (CHIPPING CAMPDEN) LTD,131845
South Ribble Council,http://statistics.data.gov.uk/doc/local-authority/30UN,Environmental Health,Licence Fees,488B,mgmt fee,30/09/2016,0000427069,"1,125.00",Revenue,Carr Street Community Centre,130312
South Ribble Council,http://statistics.data.gov.uk/doc/local-authority/30UN,Development Enterprise & Comm Mgnt,Sports Dev Expenses,4894,Delivery of 3hr First Aid in Sport Course and 2 boxes of antiseptic wipes,21/09/2016,0000426829,510.00,Revenue,Centaur Training Services (North West) Ltd,132060
South Ribble Council,http://statistics.data.gov.uk/doc/local-authority/30UN,Area 3 - Parks/Leyland East West,Grounds Maint Cntrctrs Chgs,4657,"1No WOODSTOCK LARGE MOBILITY GATE, PLAIN HOOPS, NON-SELF CLOSING, GALVANISED ONLY1 No WOODSTOCK",02/09/2016,0000425801,392.00,Revenue,CENTREWIRE,131861
South Ribble Council,http://statistics.data.gov.uk/doc/local-authority/30UN,Homelessness,Contractors Charges 5,5311,NAME REDACTED Cotswold house SRBC placement 01.08.2016  28.08.2016 inc Total 987.96.,07/09/2016,0000426410,987.96,Revenue,CHORLEY BOROUGH COUNCIL,00017352
South Ribble Council,http://statistics.data.gov.uk/doc/local-authority/30UN,Area 2 - Waste Transport/Eastern & Central Teams,Materials General,4040,"1 SWITCH, 1 AIR DRYER - PJ62 UCG - JFC7324 - GA",28/09/2016,0000427035,285.92,Revenue,CICELEY COMMERCIALS LTD,00059381
South Ribble Council,http://statistics.data.gov.uk/doc/local-authority/30UN,Property Services,Rep & Maint Premises,2020,Please supply and install a new instant WA5 into the 1st floor benefits dept. kitchen. Remove the old zip under the counter unit,02/09/2016,0000426506,624.00,Revenue,COMMERCIAL KITCHEN SERVICES LTD,00019538
South Ribble Council,http://statistics.data.gov.uk/doc/local-authority/30UN,HR & Communications,Balance Sheet,0030,CHILDCARE VOUCHERS SEPTEMBER 2016,21/09/2016,0000426870,"2,469.02",Revenue,COMPUTERSHARE VOUCHER SERVICES,00116499
South Ribble Council,http://statistics.data.gov.uk/doc/local-authority/30UN,Housing,Cap Grant- Improve Grants,C570,DFG WORKS AT ADDRESS REDACTED,09/09/2016,0000426632,"8,600.00",Revenue,Cornerstone Building & Maintenance Ltd,131383
South Ribble Council,http://statistics.data.gov.uk/doc/local-authority/30UN,Housing,Cap Grant- Improve Grants,C570,DFG WORKS AT ADDRESS REDACTED,28/09/2016,0000427015,"9,000.00",Revenue,Cornerstone Building & Maintenance Ltd,131383
South Ribble Council,http://statistics.data.gov.uk/doc/local-authority/30UN,Housing,Cap Grant- Improve Grants,C570,DFG WORKS TO BATHROOM ATADDRESS REDACTED COST 2888.00,07/09/2016,0000426565,"2,888.00",Revenue,Croston Plumbing & Heating Ltd,131545
South Ribble Council,http://statistics.data.gov.uk/doc/local-authority/30UN,Housing,Cap Grant- Improve Grants,C570,DFG WORKS AT ADDRESS REDACTED,02/09/2016,0000426566,"6,200.00",Revenue,Croston Plumbing & Heating Ltd,131545
South Ribble Council,http://statistics.data.gov.uk/doc/local-authority/30UN,Property Services,Rep & Maint Premises,2020,2016 / 2017 annual contract  for Vent plant maintenance/Cleaning/AHU Maintenance at the civic centre.,07/09/2016,0000426601,495.00,Revenue,DAIKIN APPLIED SERVICE,130324
South Ribble Council,http://statistics.data.gov.uk/doc/local-authority/30UN,Healthy Communities,Other Misc,4851,Delivery of cycling activity and bike maintenance - between September and January 2017,16/09/2016,0000426730,660.00,Revenue,NAME REDACTED,132006
South Ribble Council,http://statistics.data.gov.uk/doc/local-authority/30UN,Healthy Communities,Other Misc,4851,Delivery of cycling activity and bike maintenance - between September and January 2017,28/09/2016,0000427023,405.00,Revenue,NAME REDACTED,132006
South Ribble Council,http://statistics.data.gov.uk/doc/local-authority/30UN,Customer Contact,Other Misc,485R,REFUND,28/09/2016,0000427020,535.00,Revenue,NAME REDACTED,132086
South Ribble Council,http://statistics.data.gov.uk/doc/local-authority/30UN,Area 2 - Waste Transport/Eastern & Central Teams,Materials General,4040,4 STICKERS PN58 WFZ JFC7384,23/09/2016,0000426810,95.45,Revenue,DEL EQUIPMENT (UK) LTD,00109820
South Ribble Council,http://statistics.data.gov.uk/doc/local-authority/30UN,Area 2 - Waste Transport/Eastern & Central Teams,Materials General,4040,1 TORSION BAR KIT MV12 SWN JFC7387,23/09/2016,0000426810,169.89,Revenue,DEL EQUIPMENT (UK) LTD,00109820
South Ribble Council,http://statistics.data.gov.uk/doc/local-authority/30UN,Area 2 - Waste Transport/Eastern & Central Teams,Materials General,4040,"1 CHAIN KIT, 20 BOLTS & NUTS - MH04 GSZ- JFC7388 - GA",28/09/2016,0000426993,260.82,Revenue,DEL EQUIPMENT (UK) LTD,00109820
South Ribble Council,http://statistics.data.gov.uk/doc/local-authority/30UN,Area 2 - Waste Transport/Eastern & Central Teams,Materials General,4040,SPEC REPAIR - VN10DKL - JFC 7427,16/09/2016,0000426737,473.13,Revenue,DENNIS EAGLE LTD,00019774
South Ribble Council,http://statistics.data.gov.uk/doc/local-authority/30UN,Area 2 - Waste Transport/Eastern & Central Teams,Materials General,4040,"1 FRONT SPRING, 3 SHACKLE PINS, 2 U BOLTS & 4 NUTS VK09 AHJ JFC7319",21/09/2016,0000426783,574.36,Revenue,DENNIS EAGLE LTD,00019774
South Ribble Council,http://statistics.data.gov.uk/doc/local-authority/30UN,Area 2 - Waste Transport/Eastern & Central Teams,Materials General,4040,1 REAR DOOR FRAME - VN10DKL - JFC7496 - GA,28/09/2016,0000426883,"1,626.97",Revenue,DENNIS EAGLE LTD,00019774
South Ribble Council,http://statistics.data.gov.uk/doc/local-authority/30UN,Regeneration,Capital Expenditure,C234,Tractor and trailer fabrication 22000,16/09/2016,0000426809,"20,000.00",Revenue,DP STRUCTURES LTD,00120485
South Ribble Council,http://statistics.data.gov.uk/doc/local-authority/30UN,Regeneration,Capital Expenditure,C234,"Supply and install public art, gateway feature and bus shelters at station road, bamber bridge 202,500 + VAT",28/09/2016,0000427003,"50,000.00",Revenue,DP STRUCTURES LTD,00120485
South Ribble Council,http://statistics.data.gov.uk/doc/local-authority/30UN,Environmental Health,External Contractors Charges,4570,Clearing & Surveying of Culvert & provision of report for King George 5th playing fields - per NAMES REDACTED,21/09/2016,0000426837,"4,968.00",Revenue,DRAIN ALERT LTD,132032
South Ribble Council,http://statistics.data.gov.uk/doc/local-authority/30UN,Property Services,Professional Fees,4510,Please carry out a District Property  Portfolio review. In conjunction with NAMES REDACTED - Property Services,21/09/2016,0000426923,"5,000.00",Revenue,DTZ Debenham Tie Leung Ltd,131945
South Ribble Council,http://statistics.data.gov.uk/doc/local-authority/30UN,Information Services,Peripherals,4260,Information Services,16/09/2016,0000426615,"2,277.22",Revenue,EE Ltd,131653
South Ribble Council,http://statistics.data.gov.uk/doc/local-authority/30UN,Information Services,Publications,4142,Subscription renewal 5 copies Local Government Chronicle,28/09/2016,0000426827,"1,415.00",Revenue,EMAP COMMUNICATIONS LTD,00021241
South Ribble Council,http://statistics.data.gov.uk/doc/local-authority/30UN,Planning,Professional Fees,4510,"	Testing of Penwortham Town Draft Neighbourhood Development Plan to identify wheth the plan meets the basic condition",28/09/2016,0000426977,"3,787.80",Revenue,Erimax Ltd,132048
South Ribble Council,http://statistics.data.gov.uk/doc/local-authority/30UN,Area 2 - Waste Transport/Eastern & Central Teams,Materials General,4040,1 REAR SPRING & 2 U BOLTS / 4 NUTS & SET OF DISK PADS & WIPER BLADE - PN58WFZ - JFC 7316,21/09/2016,0000426840,403.67,Revenue,EVANSHALSHAW (PRESTON) LTD,00021076
South Ribble Council,http://statistics.data.gov.uk/doc/local-authority/30UN,Area 2 - Waste Transport/Eastern & Central Teams,Materials General,4040,2 ROLLER BEARINGS & PINS - TMR02A3 - JFC 7065,21/09/2016,0000426739,987.74,Revenue,F R SHARROCK LTD,00034539
South Ribble Council,http://statistics.data.gov.uk/doc/local-authority/30UN,Area 3 - Parks/Leyland East West,Materials General,4040,NO. 8 LAMINATED POND LINER 11M X 24M IN BLACK,30/09/2016,0000426812,657.81,Revenue,Fawcetts Liners,132046
South Ribble Council,http://statistics.data.gov.uk/doc/local-authority/30UN,Area 3 - Parks/Leyland East West,Materials General,4040,2 X 10M ROLLS 55MM (2``) WIDE,30/09/2016,0000426812,27.50,Revenue,Fawcetts Liners,132046
South Ribble Council,http://statistics.data.gov.uk/doc/local-authority/30UN,Area 2 - Waste Transport/Eastern & Central Teams,External Contractors Charges,4570,Additional Clinical Waste Collections August 2016,21/09/2016,0000426878,593.14,Revenue,FCC Environment Services (UK) Ltd,131612
South Ribble Council,http://statistics.data.gov.uk/doc/local-authority/30UN,Area 2 - Waste Transport/Eastern & Central Teams,External Contractors Charges,4570,RESIDUAL WASTE - AUGUST 2016,28/09/2016,0000427046,"41,017.97",Revenue,FCC Environment Services (UK) Ltd,131612
South Ribble Council,http://statistics.data.gov.uk/doc/local-authority/30UN,Area 2 - Waste Transport/Eastern & Central Teams,External Contractors Charges,4570,DRY RECYCLABLE NON-TERRACED AUGUST 2016,28/09/2016,0000427046,"42,003.41",Revenue,FCC Environment Services (UK) Ltd,131612
South Ribble Council,http://statistics.data.gov.uk/doc/local-authority/30UN,Area 2 - Waste Transport/Eastern & Central Teams,External Contractors Charges,4570,DRY RECYCLABLE TERRACED - AUGUST 2016,28/09/2016,0000427046,"1,995.32",Revenue,FCC Environment Services (UK) Ltd,131612
South Ribble Council,http://statistics.data.gov.uk/doc/local-authority/30UN,Area 2 - Waste Transport/Eastern & Central Teams,External Contractors Charges,4570,ORGANIC WASTE NON-TERRACED - AUGUST 2016,28/09/2016,0000427046,"29,109.43",Revenue,FCC Environment Services (UK) Ltd,131612
South Ribble Council,http://statistics.data.gov.uk/doc/local-authority/30UN,Area 2 - Waste Transport/Eastern & Central Teams,External Contractors Charges,4570,SCHEDULE 2 PROPERTIES AUGUST 2016,28/09/2016,0000427046,"1,666.50",Revenue,FCC Environment Services (UK) Ltd,131612
South Ribble Council,http://statistics.data.gov.uk/doc/local-authority/30UN,Area 2 - Waste Transport/Eastern & Central Teams,External Contractors Charges,4570,COMMERCIAL WASTE - AUGUST 2016,28/09/2016,0000427046,"6,522.89",Revenue,FCC Environment Services (UK) Ltd,131612
South Ribble Council,http://statistics.data.gov.uk/doc/local-authority/30UN,Area 2 - Waste Transport/Eastern & Central Teams,External Contractors Charges,4570,BULKY WASTE - AUGUST 2016,28/09/2016,0000427046,902.24,Revenue,FCC Environment Services (UK) Ltd,131612
South Ribble Council,http://statistics.data.gov.uk/doc/local-authority/30UN,Area 2 - Waste Transport/Eastern & Central Teams,External Contractors Charges,4570,WEEE COLLECTIONS - AUGUST 2016,28/09/2016,0000427046,337.57,Revenue,FCC Environment Services (UK) Ltd,131612
South Ribble Council,http://statistics.data.gov.uk/doc/local-authority/30UN,Area 2 - Waste Transport/Eastern & Central Teams,External Contractors Charges,4570,CLINICAL COLLECTIONS - AUGUST 2016,28/09/2016,0000427046,574.92,Revenue,FCC Environment Services (UK) Ltd,131612
South Ribble Council,http://statistics.data.gov.uk/doc/local-authority/30UN,Area 2 - Waste Transport/Eastern & Central Teams,External Contractors Charges,4570,ADDITIONAL PROPERTIES - AUGUST 2016,28/09/2016,0000427046,717.33,Revenue,FCC Environment Services (UK) Ltd,131612
South Ribble Council,http://statistics.data.gov.uk/doc/local-authority/30UN,Area 2 - Waste Transport/Eastern & Central Teams,External Contractors Charges,4570,REPLACEMENT BINS - AUGUST 2016,28/09/2016,0000427046,"5,000.00",Revenue,FCC Environment Services (UK) Ltd,131612
South Ribble Council,http://statistics.data.gov.uk/doc/local-authority/30UN,Area 2 - Waste Transport/Eastern & Central Teams,Balance Sheet,0030,RETENTION,28/09/2016,0000427046,"-2,586.97",Revenue,FCC Environment Services (UK) Ltd,131612
South Ribble Council,http://statistics.data.gov.uk/doc/local-authority/30UN,Area 2 - Waste Transport/Eastern & Central Teams,Balance Sheet,0030,RETENTION,28/09/2016,0000427046,"-3,655.41",Revenue,FCC Environment Services (UK) Ltd,131612
South Ribble Council,http://statistics.data.gov.uk/doc/local-authority/30UN,Neighbourhood Admin & Support,Materials General,4040,PITCHMARKER Q2 - 15 LITRE,21/09/2016,0000426838,290.00,Revenue,Fleet Line Markers Limited,131942
South Ribble Council,http://statistics.data.gov.uk/doc/local-authority/30UN,Neighbourhood Admin & Support,Materials General,4040,CARRIAGE,21/09/2016,0000426838,72.07,Revenue,Fleet Line Markers Limited,131942
South Ribble Council,http://statistics.data.gov.uk/doc/local-authority/30UN,Property Services,Rep & Maint Premises,2020,"Attend Moss Side Depot compound, remove 2 doors on the cabin weld in to bottom strips. Supply & fit 2 metal sheets, weld in ",21/09/2016,0000426872,280.00,Revenue,G S F (Lancs) Ltd,131474
South Ribble Council,http://statistics.data.gov.uk/doc/local-authority/30UN,Property Services,Rep & Maint Premises,2020,carry out fabrication works to the fence around the top of the fire exit roof at Bamber Bridge Leisure CentreSupply new metal fire,30/09/2016,0000427016,"1,080.00",Revenue,G S F (Lancs) Ltd,131474
South Ribble Council,http://statistics.data.gov.uk/doc/local-authority/30UN,Regeneration,Other Misc,4851,"The HP no 764 cartridges are 89.50 plus vat each and there are 6 colours Cyan, Magenta, Yellow, Matt Black, Pigment Black",23/09/2016,0000426917,"2,511.00",Revenue,GCS UK ASSOCIATES LTD,130671
South Ribble Council,http://statistics.data.gov.uk/doc/local-authority/30UN,Neighbourhood Admin & Support,Materials General,4040,"40,000 BLACK SACKS 455 X 735 X 900mm M1A1 @ 65.65/1000",21/09/2016,0000426910,"2,642.41",Revenue,GELPACK EXCELSIOR LTD,00022415
South Ribble Council,http://statistics.data.gov.uk/doc/local-authority/30UN,Regeneration,Capital Expenditure,C234,"Calculations, specification, drawings for foundations to support gateway feature",02/09/2016,0000426519,450.00,Revenue,GRAHAM SCHOFIELD ASSOCIATES,00035334
South Ribble Council,http://statistics.data.gov.uk/doc/local-authority/30UN,Shared Financial Services,Professional Fees,4512,Main Audit Fee for 2016/17,28/09/2016,0000427004,"10,980.00",Revenue,Grant Thornton UK LLP,130718
South Ribble Council,http://statistics.data.gov.uk/doc/local-authority/30UN,Neighbourhood Admin & Support,Materials General,4040,VARIOUS FILTERS,21/09/2016,0000426843,367.17,Revenue,H & J SERVICES LTD,00114446
South Ribble Council,http://statistics.data.gov.uk/doc/local-authority/30UN,Area 2 - Waste Transport/Eastern & Central Teams,Materials General,4040,2 SWITCHES - BIN 369 - GA,28/09/2016,0000427043,276.09,Revenue,H & J SERVICES LTD,00114446
South Ribble Council,http://statistics.data.gov.uk/doc/local-authority/30UN,Area 3 - Parks/Leyland East West,Grounds Maint Cntrctrs Chgs,4657,"1x Hag8057171 Roll Bar, Red Ball and fixings complete for moonbuggy.",23/09/2016,0000400534,560.00,Revenue,HAGS SMP LTD,130596
South Ribble Council,http://statistics.data.gov.uk/doc/local-authority/30UN,Area 3 - Parks/Leyland East West,Grounds Maint Cntrctrs Chgs,4657,Delivery,23/09/2016,0000400534,65.00,Revenue,HAGS SMP LTD,130596
South Ribble Council,http://statistics.data.gov.uk/doc/local-authority/30UN,Area 3 - Parks/Leyland East West,Grounds Maint Cntrctrs Chgs,4657,Please supply the following parts 2x Hag8001483 Climber with seat @ 185.00,23/09/2016,0000407257,370.00,Revenue,HAGS SMP LTD,130596
South Ribble Council,http://statistics.data.gov.uk/doc/local-authority/30UN,Area 3 - Parks/Leyland East West,Grounds Maint Cntrctrs Chgs,4657,2x Hag8001486 Climber with seat 190.00,23/09/2016,0000407257,380.00,Revenue,HAGS SMP LTD,130596
South Ribble Council,http://statistics.data.gov.uk/doc/local-authority/30UN,Area 3 - Parks/Leyland East West,Grounds Maint Cntrctrs Chgs,4657,1x Hag8017815 Fixing pack for Top Frame,23/09/2016,0000407257,55.00,Revenue,HAGS SMP LTD,130596
South Ribble Council,http://statistics.data.gov.uk/doc/local-authority/30UN,Area 3 - Parks/Leyland East West,Grounds Maint Cntrctrs Chgs,4657,4 x Hag8017502 Fixing pack for anchoring 3.00,23/09/2016,0000407257,12.00,Revenue,HAGS SMP LTD,130596
South Ribble Council,http://statistics.data.gov.uk/doc/local-authority/30UN,Area 3 - Parks/Leyland East West,Grounds Maint Cntrctrs Chgs,4657,Carriage,23/09/2016,0000407257,81.70,Revenue,HAGS SMP LTD,130596
South Ribble Council,http://statistics.data.gov.uk/doc/local-authority/30UN,Area 3 - Parks/Leyland East West,Grounds Maint Cntrctrs Chgs,4657,1x 78905003A Synergy Rope Ladder and Fixing Assembly.DELIVERY,23/09/2016,0000418941,383.90,Revenue,HAGS SMP LTD,130596
South Ribble Council,http://statistics.data.gov.uk/doc/local-authority/30UN,Area 3 - Parks/Leyland East West,Grounds Maint Cntrctrs Chgs,4657,1x HAG8018636 BASKET SEAT / CHAINS / SLEEVE FIXINGS ASSEMBLY FOR HAGS SWING,23/09/2016,0000426964,"1,212.00",Revenue,HAGS SMP LTD,130596
South Ribble Council,http://statistics.data.gov.uk/doc/local-authority/30UN,Area 3 - Parks/Leyland East West,Grounds Maint Cntrctrs Chgs,4657,DELIVERY,23/09/2016,0000426964,60.00,Revenue,HAGS SMP LTD,130596
South Ribble Council,http://statistics.data.gov.uk/doc/local-authority/30UN,Democratic Services,Other Misc,4970,HALAROSE WORKSHOP AND USER GROUP MEETING ON 7 & 8 JULY 2016 AT SOLIHULLATTENDEES:NAME REDACTED,07/09/2016,0000426204,890.00,Revenue,HALAROSE LTD,00024358
South Ribble Council,http://statistics.data.gov.uk/doc/local-authority/30UN,Democratic Services,Printing,4127,Renewal of on-going scanner maintenance for the Scanner Fi-5750C-serial number 100853 Service option 8 hr response + 8 hr ,21/09/2016,0000426795,780.00,Revenue,HALAROSE LTD,00024358
South Ribble Council,http://statistics.data.gov.uk/doc/local-authority/30UN,Information Services,Peripherals,4248,"Annual support & maintenance for WebEros - 10  users, Tellus data mining licence and Tellus uplift for period 19/10/16 18/10/17",30/09/2016,0000427090,"3,717.36",Revenue,HALAROSE LTD,00024358
South Ribble Council,http://statistics.data.gov.uk/doc/local-authority/30UN,Neighbourhood Admin & Support,Vehicle Running Costs,3134,"3,500 LITRES GAS OIL (@0.445 /LITRE",02/09/2016,0000426520,"1,292.73",Revenue,Hall Fuels trading name of WFL (UK) Ltd,00116758
South Ribble Council,http://statistics.data.gov.uk/doc/local-authority/30UN,Neighbourhood Admin & Support,Vehicle Running Costs,3132,"15,000 LITRES DIESEL (@0.9021/LITRE)",02/09/2016,0000426521,"13,532.40",Revenue,Hall Fuels trading name of WFL (UK) Ltd,00116758
South Ribble Council,http://statistics.data.gov.uk/doc/local-authority/30UN,Area 2 - Waste Transport/Eastern & Central Teams,Materials General,4040,2 VALVE & 2 SWITCHES - YP11CFM - JFC 7131,07/09/2016,0000426552,322.60,Revenue,HEIL EUROPE LTD,130575
South Ribble Council,http://statistics.data.gov.uk/doc/local-authority/30UN,Area 2 - Waste Transport/Eastern & Central Teams,Materials General,4040,2 VALVE & 2 SWITCHES - YP11CFM - JFC 7131,21/09/2016,0000426806,329.51,Revenue,HEIL EUROPE LTD,130575
South Ribble Council,http://statistics.data.gov.uk/doc/local-authority/30UN,Area 2 - Waste Transport/Eastern & Central Teams,Materials General,4040,2 COILS PJ62 UCM JFC7380,21/09/2016,0000426811,320.26,Revenue,HEIL EUROPE LTD,130575
South Ribble Council,http://statistics.data.gov.uk/doc/local-authority/30UN,Environmental Health,Licence Fees,488B,mgmt fee,30/09/2016,0000427067,"1,000.00",Revenue,HIGHER WALTON COMMUNITY CENTRE,00070535
South Ribble Council,http://statistics.data.gov.uk/doc/local-authority/30UN,Revenues Plus,Professional Fees,4510,"RV Finder - Sainsburys, Birch Ave",02/09/2016,0000426500,350.00,Revenue,Inform CPI Ltd,131666
South Ribble Council,http://statistics.data.gov.uk/doc/local-authority/30UN,Revenues Plus,Professional Fees,4510,RV Finder - Woods Farm Shop,02/09/2016,0000426502,870.00,Revenue,Inform CPI Ltd,131666
South Ribble Council,http://statistics.data.gov.uk/doc/local-authority/30UN,Information Services,Peripherals,4248,"KIT-LTO7 Tape Media, 5 pack, as per quote",30/09/2016,0000427027,"1,311.68",Revenue,INSIGHT UK,00120744
South Ribble Council,http://statistics.data.gov.uk/doc/local-authority/30UN,Neighbourhood Admin & Support,Operational Furniture & Equip,4010,QC10 - QUICK SET CONCRETE,21/09/2016,0000426822,"1,228.64",Revenue,INSTARMAC GROUP PLC,00024905
South Ribble Council,http://statistics.data.gov.uk/doc/local-authority/30UN,Area 3 - Parks/Leyland East West,Materials General,4040,116 LENGTHS OF 4.8M BROWN TREATED 4 X 1 AND 550 PEGS,07/09/2016,0000426638,697.76,Revenue,JOHN HY MAYOR & SONS LTD,00028176
South Ribble Council,http://statistics.data.gov.uk/doc/local-authority/30UN,Area 3 - Parks/Leyland East West,Capital Expenditure,C230,"CONSTRUCTION OF EXTENSION TO REINFORCED GRASS OVERFLOW CAR PARK, WORDEN PARK LEYLAND",02/09/2016,0000426044,"72,879.40",Revenue,John Wade Groundworks Ltd t/a Wade Group,131568
South Ribble Council,http://statistics.data.gov.uk/doc/local-authority/30UN,Area 3 - Parks/Leyland East West,Capital Expenditure,C230,INCREASING CONCRETE AROUND 32No TIMBER POSTS AND INSTALLATION OF 50No INTERMEDIATE POST,07/09/2016,0000426524,"3,240.00",Revenue,John Wade Groundworks Ltd t/a Wade Group,131568
South Ribble Council,http://statistics.data.gov.uk/doc/local-authority/30UN,Area 3 - Parks/Leyland East West,Capital Expenditure,C230,"CONSTRUCTION OF EXTENSION TO REINFORCED GRASS OVERFLOW CAR PARK, WORDEN PARK LEYLAND",07/09/2016,0000426525,"23,813.11",Revenue,John Wade Groundworks Ltd t/a Wade Group,131568
South Ribble Council,http://statistics.data.gov.uk/doc/local-authority/30UN,Area 3 - Parks/Leyland East West,Capital Expenditure,C230,REPAIR & RECONSTRUCTION OF SECTIONS OF THE BOUNDARY STONE WALL AT WORDEN PARK,16/09/2016,0000426801,"10,455.00",Revenue,John Wade Groundworks Ltd t/a Wade Group,131568
South Ribble Council,http://statistics.data.gov.uk/doc/local-authority/30UN,Planning,Advertising,4841,Public notices for planning applications.,07/09/2016,0000426487,603.75,Revenue,JOHNSTON PUBLISHING (NORTH WEST),00011345
South Ribble Council,http://statistics.data.gov.uk/doc/local-authority/30UN,Planning,Advertising,4841,Public notices for planning applications.,07/09/2016,0000426488,472.50,Revenue,JOHNSTON PUBLISHING (NORTH WEST),00011345
South Ribble Council,http://statistics.data.gov.uk/doc/local-authority/30UN,Planning,Advertising,4841,Public notices for planning applications.,14/09/2016,0000426657,603.75,Revenue,JOHNSTON PUBLISHING (NORTH WEST),00011345
South Ribble Council,http://statistics.data.gov.uk/doc/local-authority/30UN,Planning,Advertising,4841,Public notices for planning applications.,14/09/2016,0000426750,708.75,Revenue,JOHNSTON PUBLISHING (NORTH WEST),00011345
South Ribble Council,http://statistics.data.gov.uk/doc/local-authority/30UN,Planning,Advertising,4841,Public notices for planning applications.,21/09/2016,0000426882,577.50,Revenue,JOHNSTON PUBLISHING (NORTH WEST),00011345
South Ribble Council,http://statistics.data.gov.uk/doc/local-authority/30UN,Planning,Advertising,4841,Public notices for planning applications.,28/09/2016,0000427011,551.25,Revenue,JOHNSTON PUBLISHING (NORTH WEST),00011345
South Ribble Council,http://statistics.data.gov.uk/doc/local-authority/30UN,Planning,Advertising,4841,Public notices for planning applications.,28/09/2016,0000427033,577.50,Revenue,JOHNSTON PUBLISHING (NORTH WEST),00011345
South Ribble Council,http://statistics.data.gov.uk/doc/local-authority/30UN,Healthy Communities,Other Misc,4851,"Lostock Hall Community Primary School 2.5 Hours Per Week for 5 Weeks @ 25 per Hour Cost 312.50",02/09/2016,0000426317,250.00,Revenue,NAME REDACTED,131841
South Ribble Council,http://statistics.data.gov.uk/doc/local-authority/30UN,Healthy Communities,Other Misc,4851,"Leverhouse Primary School 2.5 Hours Per Week for 5 Weeks @ 25 Per Hour Cost-  312.50",02/09/2016,0000426317,318.75,Revenue,NAME REDACTED,131841
South Ribble Council,http://statistics.data.gov.uk/doc/local-authority/30UN,Homelessness,Other Misc,4851,6 months pre tenancy traninng 1/9/16-28/2/17,07/09/2016,0000426633,"2,500.00",Revenue,KEY UNLOCKING FUTURES LTD,00098601
South Ribble Council,http://statistics.data.gov.uk/doc/local-authority/30UN,Property Services,Rep & Maint Premises,2020,"Legionella risk assessment works & log book for Hern Ave, Higher Walton, the Holme & Much Hoole sports pavilions",30/09/2016,0000427096,600.00,Revenue,KNOWSLEY BLD & ENVIRONMENTAL SERVICES LT,00072656
South Ribble Council,http://statistics.data.gov.uk/doc/local-authority/30UN,Area 3 - Parks/Leyland East West,Grounds Maint Cntrctrs Chgs,4657,X1 SET OF BEARINGS FOR SPICA SPINNING POLE - A801418-99,07/09/2016,0000426512,280.00,Revenue,KOMPAN LTD,00026026
South Ribble Council,http://statistics.data.gov.uk/doc/local-authority/30UN,Area 3 - Parks/Leyland East West,Grounds Maint Cntrctrs Chgs,4657,DELIVERY,07/09/2016,0000426512,30.80,Revenue,KOMPAN LTD,00026026
South Ribble Council,http://statistics.data.gov.uk/doc/local-authority/30UN,HR & Communications,Training Expense-Course Fees,1402,LABC ADMIN SUPPORT TRAINING COURSE FOR NAMES REDACTED 20/10/2016,28/09/2016,0000426924,300.00,Revenue,LABC,00119218
South Ribble Council,http://statistics.data.gov.uk/doc/local-authority/30UN,Development Enterprise & Comm Mgnt,Other Misc,4851,South Ribble CAB core funding 1 April 2016  31 March 2017,07/09/2016,0000426496,"20,000.00",Revenue,LANCASHIRE WEST CITIZENS ADVICE BUREAUX,00017349
South Ribble Council,http://statistics.data.gov.uk/doc/local-authority/30UN,Area 2 - Waste Transport/Eastern & Central Teams,Contractors Charges 5,5412,"QUARTER 1 DISPOSAL FEE, LANDFILL TAX & 5% ADMIN FEE",07/09/2016,0000426265,"36,893.80",Revenue,LANCS COUNTY COUNCIL,00041645
South Ribble Council,http://statistics.data.gov.uk/doc/local-authority/30UN,Housing,Cap Grant- Improve Grants,C570,SUPPLY AND INSTALL STAIR LIFT AS PER QUOTE A ADDRESS REDACTED 775.00,07/09/2016,0000426430,775.00,Revenue,LANCS COUNTY COUNCIL,00041645
South Ribble Council,http://statistics.data.gov.uk/doc/local-authority/30UN,Legal,Other Local Authorities,4530,LAND CHARGES - MAY 2016,02/09/2016,0000426489,"1,130.50",Revenue,LANCS COUNTY COUNCIL,00041645
South Ribble Council,http://statistics.data.gov.uk/doc/local-authority/30UN,Legal,Other Local Authorities,4530,LAND CHARGES - JUNE 2016,07/09/2016,0000426490,"1,393.00",Revenue,LANCS COUNTY COUNCIL,00041645
South Ribble Council,http://statistics.data.gov.uk/doc/local-authority/30UN,Legal,Other Local Authorities,4530,LAND CHARGES - JULY 2016,07/09/2016,0000426490,972.50,Revenue,LANCS COUNTY COUNCIL,00041645
South Ribble Council,http://statistics.data.gov.uk/doc/local-authority/30UN,Area 2 - Waste Transport/Eastern & Central Teams,Contractors Charges 5,5412,"QUARTER 1 DISPOSAL FEE, LANDFILL TAX & 5% ADMIN FEE",14/09/2016,0000426733,"18,070.48",Revenue,LANCS COUNTY COUNCIL,00041645
South Ribble Council,http://statistics.data.gov.uk/doc/local-authority/30UN,Regeneration,Sports Dev Expenses,4894,Multi skills award for: NAMES REDACTED,28/09/2016,0000426996,280.00,Revenue,LANCS COUNTY COUNCIL,00041645
South Ribble Council,http://statistics.data.gov.uk/doc/local-authority/30UN,Regeneration,Sports Dev Expenses,4894,Multi skills award for: NAMES REDACTED,28/09/2016,0000426997,280.00,Revenue,LANCS COUNTY COUNCIL,00041645
South Ribble Council,http://statistics.data.gov.uk/doc/local-authority/30UN,Area 2 - Waste Transport/Eastern & Central Teams,Materials General,4040,HUB KIT - NX58 FJZ - JFC7511 - GA,28/09/2016,0000426960,"1,703.12",Revenue,LANCS DAF,00026424
South Ribble Council,http://statistics.data.gov.uk/doc/local-authority/30UN,Regeneration,Other Misc,4861,"4 x banners 40each7 x Street light plates 40each  28 x corrugated plastic 6.15each  For Love your Village anti-litter / anti",28/09/2016,0000426988,612.20,Revenue,LCC SIGN SHOP,00027096
South Ribble Council,http://statistics.data.gov.uk/doc/local-authority/30UN,Planning,Printing,4125,Lease Rental - Hewlett Packard Plotters,28/09/2016,0000427010,"1,426.25",Revenue,LDF FINANCE No1 LTD,131373
South Ribble Council,http://statistics.data.gov.uk/doc/local-authority/30UN,Area 2 - Waste Transport/Eastern & Central Teams,External Contractors Charges,4570,SOEC REPAIR - PJ07GNO - JFC 7476,28/09/2016,0000426926,354.65,Revenue,LEYLAND GARAGE SERVICE CENTRE LTD,00064541
South Ribble Council,http://statistics.data.gov.uk/doc/local-authority/30UN,Area 2 - Waste Transport/Eastern & Central Teams,External Contractors Charges,4570,1 MOT PN58 WFZ JFC7316,23/09/2016,0000426927,45.00,Revenue,LEYLAND GARAGE SERVICE CENTRE LTD,00064541
South Ribble Council,http://statistics.data.gov.uk/doc/local-authority/30UN,Area 2 - Waste Transport/Eastern & Central Teams,External Contractors Charges,4570,welding repairs,23/09/2016,0000426927,250.00,Revenue,LEYLAND GARAGE SERVICE CENTRE LTD,00064541
South Ribble Council,http://statistics.data.gov.uk/doc/local-authority/30UN,Area 2 - Waste Transport/Eastern & Central Teams,External Contractors Charges,4570,SPEC REPAIR - PN58 WKH - JFC7504 - GA,30/09/2016,0000427065,804.00,Revenue,LEYLAND GARAGE SERVICE CENTRE LTD,00064541
South Ribble Council,http://statistics.data.gov.uk/doc/local-authority/30UN,Area 3 - Parks/Leyland East West,Grounds Maint Cntrctrs Chgs,4657,"1 railing section - galvanised, painted and fitted at Bellis Way Walton le Dale",09/09/2016,0000426618,305.00,Revenue,Leyland Lane Wrought Iron Gates & Railings,132012
South Ribble Council,http://statistics.data.gov.uk/doc/local-authority/30UN,Development Enterprise & Comm Mgnt,Other Misc,485A,Coastal communities Fund small business grant - 500,28/09/2016,0000427021,500.00,Revenue,Lindsay Meredith Marketing and Communications,132047
South Ribble Council,http://statistics.data.gov.uk/doc/local-authority/30UN,Area 3 - Parks/Leyland East West,Materials General,4040,20 TON TOP SOIL,02/09/2016,0000426529,401.32,Revenue,M C & M A STEWART HAULAGE LTD,00035567
South Ribble Council,http://statistics.data.gov.uk/doc/local-authority/30UN,Housing,Cap Grant- Improve Grants,C570,DFG Works to bathroom as per quote at ADDRESS REDACTED,28/09/2016,0000427031,"3,560.00",Revenue,NAME REDACTED,00087434
South Ribble Council,http://statistics.data.gov.uk/doc/local-authority/30UN,Area 2 - Waste Transport/Eastern & Central Teams,External Contractors Charges,4570,SPEC REPAIR - NX58FJZ - JFC 7414,16/09/2016,0000426748,815.64,Revenue,M WILSON COMMERCIALS LIMITED,130533
South Ribble Council,http://statistics.data.gov.uk/doc/local-authority/30UN,Area 2 - Waste Transport/Eastern & Central Teams,External Contractors Charges,4570,SPEC REPAIR - PJ62UCH - JFC7255,23/09/2016,0000426932,813.87,Revenue,M WILSON COMMERCIALS LIMITED,130533
South Ribble Council,http://statistics.data.gov.uk/doc/local-authority/30UN,Property Services,Rep & Maint Premises,2020,2016 / 2017 contract for gutter inspection at Leyland Market,28/09/2016,0000425228,107.50,Revenue,MAINCOAT LTD,00099244
South Ribble Council,http://statistics.data.gov.uk/doc/local-authority/30UN,Property Services,Rep & Maint Premises,2020,2016 / 2017 contract for gutter inspection at Leyland Leisure Centre,28/09/2016,0000425228,181.50,Revenue,MAINCOAT LTD,00099244
South Ribble Council,http://statistics.data.gov.uk/doc/local-authority/30UN,Property Services,Rep & Maint Premises,2020,2016 / 2017 contract for gutter inspection at Bamber Bridge Leisure Centre,28/09/2016,0000425228,181.50,Revenue,MAINCOAT LTD,00099244
South Ribble Council,http://statistics.data.gov.uk/doc/local-authority/30UN,Property Services,Rep & Maint Premises,2020,2016 / 2017 contract for hard standing inspection at Leyland market,28/09/2016,0000425228,13.50,Revenue,MAINCOAT LTD,00099244
South Ribble Council,http://statistics.data.gov.uk/doc/local-authority/30UN,Property Services,Rep & Maint Premises,2020,2016 / 2017 contract for hard standing inspection at Bamber Bridge Community Centre,28/09/2016,0000425228,13.50,Revenue,MAINCOAT LTD,00099244
South Ribble Council,http://statistics.data.gov.uk/doc/local-authority/30UN,Property Services,Rep & Maint Premises,2020,2016 / 2017 contract for hard standing inspection at Leyland Leisure Centre,28/09/2016,0000425228,13.50,Revenue,MAINCOAT LTD,00099244
South Ribble Council,http://statistics.data.gov.uk/doc/local-authority/30UN,Property Services,Rep & Maint Premises,2020,Please attend ADDRESS REDACTED  to clean out the metal gutter and prepare the gutter to receive a glass fibre lining.,07/09/2016,0000426523,720.00,Revenue,MAINCOAT LTD,00099244
South Ribble Council,http://statistics.data.gov.uk/doc/local-authority/30UN,Property Services,Rep & Maint Premises,2020,Rep & Maint Premises,07/09/2016,0000426523,480.00,Revenue,MAINCOAT LTD,00099244
South Ribble Council,http://statistics.data.gov.uk/doc/local-authority/30UN,Property Services,Rep & Maint Premises,2020,Carry out the work at Bamber Bridge Leisure Centre as per your quotation JEH/E/6072 for the refurbishment of the flat roof,30/09/2016,0000427081,"5,862.00",Revenue,MAINCOAT LTD,00099244
South Ribble Council,http://statistics.data.gov.uk/doc/local-authority/30UN,Property Services,Rep & Maint Premises,2020,materials,30/09/2016,0000427081,"3,908.00",Revenue,MAINCOAT LTD,00099244
South Ribble Council,http://statistics.data.gov.uk/doc/local-authority/30UN,Area 1 - Penwortham Western Parishes,Professional Fees,4521,PROVISION OF STRAY DOG SERVICE - TO COVER JULY 2016,07/09/2016,0000426589,435.46,Revenue,MORNINGSIDE KENNELS,00067755
South Ribble Council,http://statistics.data.gov.uk/doc/local-authority/30UN,Environmental Health,Licence Fees,488B,mgmt fee,30/09/2016,0000427068,"1,375.00",Revenue,MOSS SIDE COMMUNITY FORUM,00098724
South Ribble Council,http://statistics.data.gov.uk/doc/local-authority/30UN,Housing,Cap Grant- Improve Grants,C570,DFG WORKS AT ADDRESS REDACTED,23/09/2016,0000426971,"4,160.00",Revenue,NAME REDACTED,131996
South Ribble Council,http://statistics.data.gov.uk/doc/local-authority/30UN,Area 2 - Waste Transport/Eastern & Central Teams,External Contractors Charges,4570,STEAM CLEAN - JFC7128 - PO13UUM - PD,07/09/2016,0000426580,65.00,Revenue,NAYLORS TRANSPORT (LEYLAND) ltd,00114828
South Ribble Council,http://statistics.data.gov.uk/doc/local-authority/30UN,Area 2 - Waste Transport/Eastern & Central Teams,External Contractors Charges,4570,STEAM CLEAN - JFC7129 - PJ62UCM - PD,07/09/2016,0000426580,65.00,Revenue,NAYLORS TRANSPORT (LEYLAND) ltd,00114828
South Ribble Council,http://statistics.data.gov.uk/doc/local-authority/30UN,Area 2 - Waste Transport/Eastern & Central Teams,External Contractors Charges,4570,STEAM CLEAN - JFC7130 - VO65KPZ - PD,07/09/2016,0000426580,65.00,Revenue,NAYLORS TRANSPORT (LEYLAND) ltd,00114828
South Ribble Council,http://statistics.data.gov.uk/doc/local-authority/30UN,Area 2 - Waste Transport/Eastern & Central Teams,External Contractors Charges,4570,STEAM CLEAN - JFC7125 - PJ62UCG - PD,07/09/2016,0000426580,65.00,Revenue,NAYLORS TRANSPORT (LEYLAND) ltd,00114828
South Ribble Council,http://statistics.data.gov.uk/doc/local-authority/30UN,Area 2 - Waste Transport/Eastern & Central Teams,External Contractors Charges,4570,STEAM CLEAN - JFC7126 - NX58FJZ - PD,07/09/2016,0000426580,65.00,Revenue,NAYLORS TRANSPORT (LEYLAND) ltd,00114828
South Ribble Council,http://statistics.data.gov.uk/doc/local-authority/30UN,Area 2 - Waste Transport/Eastern & Central Teams,External Contractors Charges,4570,STEAM CLEAN - JFC7127 - VO65KRE - PD,07/09/2016,0000426580,65.00,Revenue,NAYLORS TRANSPORT (LEYLAND) ltd,00114828
South Ribble Council,http://statistics.data.gov.uk/doc/local-authority/30UN,Area 2 - Waste Transport/Eastern & Central Teams,External Contractors Charges,4570,STEAM CLEAN - JFC7131 - YP11CFM - PD,07/09/2016,0000426580,75.00,Revenue,NAYLORS TRANSPORT (LEYLAND) ltd,00114828
South Ribble Council,http://statistics.data.gov.uk/doc/local-authority/30UN,Area 2 - Waste Transport/Eastern & Central Teams,External Contractors Charges,4570,STEAM CLEAN - JFC7132 - MX04YNL - PD,07/09/2016,0000426580,65.00,Revenue,NAYLORS TRANSPORT (LEYLAND) ltd,00114828
South Ribble Council,http://statistics.data.gov.uk/doc/local-authority/30UN,Property Services,Client Internal Charges,4590,"2016 / 2017 - Weekly waste removal at Leyland Market, @ 79.49 plus ad hoc pick ups as required.",14/09/2016,0000426745,317.96,Revenue,NEALES WASTE MANAGEMENT,130129
South Ribble Council,http://statistics.data.gov.uk/doc/local-authority/30UN,Homelessness,Contributions,4730,Womens refuge funding SRBC contribution,23/09/2016,0000426919,"1,000.00",Revenue,NEW PROGRESS HOUSING ASSOC ref:DNSOU001,00030135
South Ribble Council,http://statistics.data.gov.uk/doc/local-authority/30UN,Regeneration,Capital Expenditure,C234,planting for tractor at Leyland roundabout.,28/09/2016,0000426991,785.00,Revenue,NEWGATE NURSERIES,00069591
South Ribble Council,http://statistics.data.gov.uk/doc/local-authority/30UN,Development Enterprise & Comm Mgnt,Other Misc,4851,Bikeability Sessions in New Longton Primary School,14/09/2016,0000426784,875.00,Revenue,NAME REDACTED,131002
South Ribble Council,http://statistics.data.gov.uk/doc/local-authority/30UN,Regeneration,Other Misc,485K,"4 x A1 double skin acrylic frames with six stand-off brackets per frame and full colour print to fit  135.00 each 3 x A0 double",28/09/2016,0000426621,"1,378.00",Revenue,NORWYN LTD,00118303
South Ribble Council,http://statistics.data.gov.uk/doc/local-authority/30UN,Area 1 - Penwortham Western Parishes,Professional Fees,4514,DEPLOYMENT OF OFFICERS AUGUST 2016,21/09/2016,0000426907,"1,693.05",Revenue,NSL LTD,00116868
South Ribble Council,http://statistics.data.gov.uk/doc/local-authority/30UN,Area 1 - Penwortham Western Parishes,Other Misc,4855,CASH COLLECTION & RINGO TRANSACTIONS AUGUST 2016,21/09/2016,0000426907,207.36,Revenue,NSL LTD,00116868
South Ribble Council,http://statistics.data.gov.uk/doc/local-authority/30UN,Development Enterprise & Comm Mgnt,Consultancy Fees,4541,Deliver a business and innovation advice service within the specified geographical area around Longton including all the required,07/09/2016,0000426423,"2,700.00",Revenue,ORVIA GROUP LTD,131952
South Ribble Council,http://statistics.data.gov.uk/doc/local-authority/30UN,Revenues Plus,Other Misc,4851,Web Benefits Calculator software licence annual subscription 12.1.16 to 11.1.17,07/09/2016,0000426605,640.00,Revenue,OTECH LTD,00088268
South Ribble Council,http://statistics.data.gov.uk/doc/local-authority/30UN,Shared Assurance Services,Professional Fees,4510,Property inspection,16/09/2016,0000426804,"25,578.00",Revenue,Pell Frischmann,132016
South Ribble Council,http://statistics.data.gov.uk/doc/local-authority/30UN,Shared Assurance Services,Professional Fees,4510,"Property inspections re flood grants: 9 Residential Properties at 294 VAT - 529.20",30/09/2016,0000427103,"2,646.00",Revenue,Pell Frischmann,132016
South Ribble Council,http://statistics.data.gov.uk/doc/local-authority/30UN,Environmental Health,Professional Fees,4522,gov fee,30/09/2016,0000427080,308.00,Revenue,Personnel Checks,131483
South Ribble Council,http://statistics.data.gov.uk/doc/local-authority/30UN,Environmental Health,Professional Fees,4522,admin fee,30/09/2016,0000427080,93.31,Revenue,Personnel Checks,131483
South Ribble Council,http://statistics.data.gov.uk/doc/local-authority/30UN,Regeneration,Capital Expenditure,C234,10 number - 2400x1500mm mesh banners (Bamber bridge improvement),09/09/2016,0000426564,552.13,Revenue,Poppy Signs Ltd,131670
South Ribble Council,http://statistics.data.gov.uk/doc/local-authority/30UN,Housing,Cap Grant- Improve Grants,C570,DFG WORKS AT ADDRESS REDACTED,28/09/2016,0000427024,"1,612.00",Revenue,Positive Plumbing Solutions Ltd,131562
South Ribble Council,http://statistics.data.gov.uk/doc/local-authority/30UN,Information Services,Stationery,4133,"80,000 sheets  Evolution Everyday A4 80gm15,000 sheets Evolution Business A4 90gm 5000 sheets Evolution Everyday A3  ",09/09/2016,0000426690,512.37,Revenue,PREMIER PAPER GROUP LTD,00022606
South Ribble Council,http://statistics.data.gov.uk/doc/local-authority/30UN,Information Services,Stationery,4133,"75,000 sheets  Evolution Everyday A4 80gm, 30,000 sheets  Evolution  Business A4 90gm 5000 sheets Evolution Everyday A3 ",28/09/2016,0000427039,557.65,Revenue,PREMIER PAPER GROUP LTD,00022606
South Ribble Council,http://statistics.data.gov.uk/doc/local-authority/30UN,Area 3 - Parks/Leyland East West,Grounds Maint Cntrctrs Chgs,4657,20 x HEAVY DUTY HERRAS FENCING WITOUT FEET AND CLIPS @ 29.98 EACH,28/09/2016,0000426831,599.60,Revenue,Preston Fencing Ltd,131617
South Ribble Council,http://statistics.data.gov.uk/doc/local-authority/30UN,Area 2 - Waste Transport/Eastern & Central Teams,Materials General,4040,TYRE REPAIRS - TR166 - GA,07/09/2016,0000426532,602.00,Revenue,PRESTON TYRE SPECIALISTS,00109516
South Ribble Council,http://statistics.data.gov.uk/doc/local-authority/30UN,Democratic Services,Printing,4127,"24,500 - 1st Reminder Run",30/09/2016,0000427044,"2,913.20",Revenue,PRINT IMAGE NETWORK LTD,00089199
South Ribble Council,http://statistics.data.gov.uk/doc/local-authority/30UN,Area 3 - Parks/Leyland East West,Grounds Maint Cntrctrs Chgs,4657,PLEASE SUPPLY SPARE PARTS FROM QUOTATION REF NO: 1608.13252,07/09/2016,0000426581,"1,165.60",Revenue,PROLUDIC LTD,00083263
South Ribble Council,http://statistics.data.gov.uk/doc/local-authority/30UN,Area 3 - Parks/Leyland East West,Grounds Maint Cntrctrs Chgs,4657,DELIVERY,07/09/2016,0000426581,116.56,Revenue,PROLUDIC LTD,00083263
South Ribble Council,http://statistics.data.gov.uk/doc/local-authority/30UN,Information Services,Postage,4292,Franking Funds top up payment + reset fee,28/09/2016,0000427052,"9,090.00",Revenue,Purchase Power,00093923
South Ribble Council,http://statistics.data.gov.uk/doc/local-authority/30UN,Area 1 - Penwortham Western Parishes,Materials General,4040,"To supply, deliver & install an Arun Cantilever shelter outsideADDRESS REDACTED as per EQ4970a. 3 bay",07/09/2016,0000425415,"3,440.76",Revenue,QUEENSBURY SHELTERS LTD,00084576
South Ribble Council,http://statistics.data.gov.uk/doc/local-authority/30UN,Area 1 - Penwortham Western Parishes,Materials General,4040,3m Aluminium perch seat,07/09/2016,0000425415,264.00,Revenue,QUEENSBURY SHELTERS LTD,00084576
South Ribble Council,http://statistics.data.gov.uk/doc/local-authority/30UN,Area 1 - Penwortham Western Parishes,Materials General,4040,2 No vinyls to read `Shelter supplied by Farington Parish Council`,07/09/2016,0000425415,112.20,Revenue,QUEENSBURY SHELTERS LTD,00084576
South Ribble Council,http://statistics.data.gov.uk/doc/local-authority/30UN,Property Services,Rep & Maint Premises,2020,2. re-fix/replace yellow nosing to outside steps (near bike cage) Reported by ADDRESS REDACTED (Serco)  please liaise with ,02/09/2016,0000426513,301.00,Revenue,RED ROSE BUILDING MAINTENANCE,00085410
South Ribble Council,http://statistics.data.gov.uk/doc/local-authority/30UN,Property Services,Rep & Maint Premises,2020,"Moss Side Depot compound, excavate a hole to a cubic meter and fill with concrete. Install 4 x threaded bolts. Erect metal",07/09/2016,0000426537,567.00,Revenue,RED ROSE BUILDING MAINTENANCE,00085410
South Ribble Council,http://statistics.data.gov.uk/doc/local-authority/30UN,Property Services,Rep & Maint Premises,2020,materials,07/09/2016,0000426537,240.00,Revenue,RED ROSE BUILDING MAINTENANCE,00085410
South Ribble Council,http://statistics.data.gov.uk/doc/local-authority/30UN,Property Services,Rep & Maint Premises,2020,Penwortham Holme to empty the contents of the grab bags  which are located across the entrance and distribute the stone,09/09/2016,0000426661,432.00,Revenue,RED ROSE BUILDING MAINTENANCE,00085410
South Ribble Council,http://statistics.data.gov.uk/doc/local-authority/30UN,Property Services,Rep & Maint Premises,2020,MATERIALS,09/09/2016,0000426661,260.00,Revenue,RED ROSE BUILDING MAINTENANCE,00085410
South Ribble Council,http://statistics.data.gov.uk/doc/local-authority/30UN,Property Services,Rep & Maint Premises,2020,Please attend unit 2 Middleforth Industrial Estate and clear out,30/09/2016,0000427034,778.00,Revenue,RED ROSE BUILDING MAINTENANCE,00085410
South Ribble Council,http://statistics.data.gov.uk/doc/local-authority/30UN,Regeneration,Other Misc,4851,Short term rental of storage unit - from 12th July - 8th November - 933.00,21/09/2016,0000426700,777.58,Revenue,Red Rose Self Storage Limited,132014
South Ribble Council,http://statistics.data.gov.uk/doc/local-authority/30UN,Homelessness,Contributions,4730,NAME REDACTED placed under NSNO at the Courtyard x 28 days placed 29.7.16 expires 26.8.16 125/week,02/09/2016,0000426503,500.00,Revenue,REDDY & CO,00108177
South Ribble Council,http://statistics.data.gov.uk/doc/local-authority/30UN,Homelessness,Contractors Charges 5,5311,Accommodation Costs Old Steam Mill 1/10/16-31/12/16,23/09/2016,0000426940,"5,624.90",Revenue,REDDY & CO,00108177
South Ribble Council,http://statistics.data.gov.uk/doc/local-authority/30UN,HR & Communications,Payroll Suspense,1741,ANNUAL SUBSCRIPTION  29TH JULY 2016 - 28TH JULY 2017,21/09/2016,0000426879,"2,048.00",Revenue,REED BUSINESS INFORMATION LTD,00033051
South Ribble Council,http://statistics.data.gov.uk/doc/local-authority/30UN,Information Services,Lease Rental Charges,4036,Lease Rental Charges,28/09/2016,0000427048,315.00,Revenue,RICOH (UK) LTD,00082976
South Ribble Council,http://statistics.data.gov.uk/doc/local-authority/30UN,Legal,Capital Expenditure,C234,legal,02/09/2016,0000426427,710.16,Revenue,ROUNDHOUSE MOMENTUM DEVELOPMENTS LTD,131973
South Ribble Council,http://statistics.data.gov.uk/doc/local-authority/30UN,Legal,Capital Expenditure,C234,legal,02/09/2016,0000426427,"436,500.00",Revenue,ROUNDHOUSE MOMENTUM DEVELOPMENTS LTD,131973
South Ribble Council,http://statistics.data.gov.uk/doc/local-authority/30UN,Democratic Services,Other Misc,4422,other misc,02/09/2016,0000426215,971.85,Revenue,ROYAL MAIL GROUP PLC,00033543
South Ribble Council,http://statistics.data.gov.uk/doc/local-authority/30UN,Democratic Services,Other Misc,4422,other misc,02/09/2016,0000426215,56.17,Revenue,ROYAL MAIL GROUP PLC,00033543
South Ribble Council,http://statistics.data.gov.uk/doc/local-authority/30UN,Democratic Services,Other Misc,4422,other misc,02/09/2016,0000426215,32.48,Revenue,ROYAL MAIL GROUP PLC,00033543
South Ribble Council,http://statistics.data.gov.uk/doc/local-authority/30UN,Democratic Services,Postage,4291,postage,09/09/2016,0000426616,"3,935.46",Revenue,ROYAL MAIL GROUP PLC,00033543
South Ribble Council,http://statistics.data.gov.uk/doc/local-authority/30UN,Information Services,Postage,4295,postage,14/09/2016,0000426761,270.56,Revenue,ROYAL MAIL GROUP PLC,00033543
South Ribble Council,http://statistics.data.gov.uk/doc/local-authority/30UN,Area 2 - Waste Transport/Eastern & Central Teams,External Contractors Charges,4570,SPEC REPAIR - VEHICLE WORKSHOP - PD,16/09/2016,0000426799,716.60,Revenue,S & R GARAGE EQUIPMENT,130892
South Ribble Council,http://statistics.data.gov.uk/doc/local-authority/30UN,Property Services,Energy Costs,2304,Energy Costs,16/09/2016,0000426813,603.51,Revenue,SCOTTISH HYDRO ELECTRIC,130051
South Ribble Council,http://statistics.data.gov.uk/doc/local-authority/30UN,Property Services,Energy Costs,2307,Energy Costs ,16/09/2016,0000426813,14.85,Revenue,SCOTTISH HYDRO ELECTRIC,130051
South Ribble Council,http://statistics.data.gov.uk/doc/local-authority/30UN,Property Services,Energy Costs,2304,Energy Costs,16/09/2016,0000426814,472.40,Revenue,SCOTTISH HYDRO ELECTRIC,130051
South Ribble Council,http://statistics.data.gov.uk/doc/local-authority/30UN,Property Services,Energy Costs,2304,Energy Costs,16/09/2016,0000426815,461.68,Revenue,SCOTTISH HYDRO ELECTRIC,130051
South Ribble Council,http://statistics.data.gov.uk/doc/local-authority/30UN,Property Services,Energy Costs,2303,1/6/16 to 30/8/16,21/09/2016,0000426849,651.28,Revenue,SCOTTISH HYDRO ELECTRIC,130051
South Ribble Council,http://statistics.data.gov.uk/doc/local-authority/30UN,Property Services,Energy Costs,2307,ccl,21/09/2016,0000426849,32.77,Revenue,SCOTTISH HYDRO ELECTRIC,130051
South Ribble Council,http://statistics.data.gov.uk/doc/local-authority/30UN,Property Services,Energy Costs,2303,1/8/16 to 31/8/16,21/09/2016,0000426850,"1,007.80",Revenue,SCOTTISH HYDRO ELECTRIC,130051
South Ribble Council,http://statistics.data.gov.uk/doc/local-authority/30UN,Property Services,Energy Costs,2307,ccl,21/09/2016,0000426850,52.17,Revenue,SCOTTISH HYDRO ELECTRIC,130051
South Ribble Council,http://statistics.data.gov.uk/doc/local-authority/30UN,Property Services,Energy Costs,2303,1/8/16 to 31/8/16,21/09/2016,0000426851,"2,728.28",Revenue,SCOTTISH HYDRO ELECTRIC,130051
South Ribble Council,http://statistics.data.gov.uk/doc/local-authority/30UN,Property Services,Energy Costs,2307,ccl,21/09/2016,0000426851,142.68,Revenue,SCOTTISH HYDRO ELECTRIC,130051
South Ribble Council,http://statistics.data.gov.uk/doc/local-authority/30UN,Property Services,Energy Costs,2303,1/8/16 to 31/8/16,21/09/2016,0000426858,"1,627.17",Revenue,SCOTTISH HYDRO ELECTRIC,130051
South Ribble Council,http://statistics.data.gov.uk/doc/local-authority/30UN,Property Services,Energy Costs,2307,ccl,21/09/2016,0000426858,88.33,Revenue,SCOTTISH HYDRO ELECTRIC,130051
South Ribble Council,http://statistics.data.gov.uk/doc/local-authority/30UN,Information Services,Capital Expenditure,C234,"Fusible Link & Installation - Generator, as per quote ref. 17778",28/09/2016,0000427008,"1,145.00",Revenue,SECURE POWER LTD,131336
South Ribble Council,http://statistics.data.gov.uk/doc/local-authority/30UN,Information Services,Peripherals,4248,Envoy HR Licence for the period 01/10/16 - 30/09/17,07/09/2016,0000426582,"16,780.15",Revenue,SELIMA SOFTWARE LTD,00043368
South Ribble Council,http://statistics.data.gov.uk/doc/local-authority/30UN,Healthy Communities,Consultancy Fees,4536,"R & M 2016/17 payable by 12 payments of 14,931.44 + VAT",16/09/2016,0000426623,"14,931.44",Revenue,SERCO LEISURE (OP) LTD,00094906
South Ribble Council,http://statistics.data.gov.uk/doc/local-authority/30UN,Democratic Services,Other Misc,4421,85 PRESIDING OFFICERS SUNDRIES BAGS (EURO REFERENDUM),02/09/2016,0000426284,"1,041.25",Revenue,SHAW & SONS LTD,00034542
South Ribble Council,http://statistics.data.gov.uk/doc/local-authority/30UN,Healthy Communities,Other Misc,4861,15 of 660mm x 2000mm (artwork previously supplied) 25 each plus VAT,09/09/2016,0000425471,375.00,Revenue,SIGNCRAFT,130512
South Ribble Council,http://statistics.data.gov.uk/doc/local-authority/30UN,Area 2 - Waste Transport/Eastern & Central Teams,External Contractors Charges,4570,SPEC REPAIR - RV14DTZ - JFC7245 - PD (Supply/fit Banksman radar system),02/09/2016,0000426549,920.00,Revenue,SMUK,132051
South Ribble Council,http://statistics.data.gov.uk/doc/local-authority/30UN,Information Services,Capital Expenditure,C234,Upgrade and server move as per quote ref. Q2016-4297-JS,30/09/2016,0000426908,"1,790.00",Revenue,SORCE LTD,00080509
South Ribble Council,http://statistics.data.gov.uk/doc/local-authority/30UN,Healthy Communities,Consultancy Fees,4532,"Leisure Services Fee 2016/17 (249,981.70) payable by 12 payments of 20,831.81 + VAT",14/09/2016,0000426376,"83,327.32",Revenue,SOUTH RIBBLE COMMUNITY LEISURE LTD,00094210
South Ribble Council,http://statistics.data.gov.uk/doc/local-authority/30UN,Environmental Health,Training Expense-Course Fees,1400,"FAW Training - per NAME REDACTED 5,6 and 7th September 9:30  16:30 Tennis Centre NAMES REDACTED",21/09/2016,0000426797,840.00,Revenue,SOUTH RIBBLE COMMUNITY LEISURE LTD,00094210
South Ribble Council,http://statistics.data.gov.uk/doc/local-authority/30UN,Environmental Health,Professional Fees,4510,As Above - NAME REDACTED,21/09/2016,0000426797,120.00,Revenue,SOUTH RIBBLE COMMUNITY LEISURE LTD,00094210
South Ribble Council,http://statistics.data.gov.uk/doc/local-authority/30UN,Neighbourhood Admin & Support,Operational Furniture & Equip,4010,HAND SHOVEL - 27301,28/09/2016,0000426994,15.06,Revenue,SPALDINGS,00070849
South Ribble Council,http://statistics.data.gov.uk/doc/local-authority/30UN,Neighbourhood Admin & Support,Operational Furniture & Equip,4010,LITTER PICKER - HA340,28/09/2016,0000426994,561.00,Revenue,SPALDINGS,00070849
South Ribble Council,http://statistics.data.gov.uk/doc/local-authority/30UN,Planning,Operational Furniture & Equip,4010,5000 x A Neighbours Guide on How to Comment A5 8pp 150gsm gloss art paper Wire stitched x 2 folded trimmed and boxed,09/09/2016,0000426424,550.00,Revenue,SPRINTPRINT (PRESTON),131207
South Ribble Council,http://statistics.data.gov.uk/doc/local-authority/30UN,Democratic Services,Other Misc,4421,USE OF VENUE AS A POLLING STATION FOR THE EU REFERENDUM ON THURSDAY 23 JUNE 2016 ACCESS WILL BE ,21/09/2016,0000426830,400.00,Revenue,St Teresa`s Social Club,131974
South Ribble Council,http://statistics.data.gov.uk/doc/local-authority/30UN,Property Services,Rents,2401,"2016 / 2017 rental fees for Forward Industrial Estate Talbot Road, Leyland",07/09/2016,0000426624,"12,537.50",Revenue,STONEWELL PROPERTY COMPANY LTD,00118138
South Ribble Council,http://statistics.data.gov.uk/doc/local-authority/30UN,Property Services,Rents,2401,less qtr charge,07/09/2016,0000426624,"-2,850.00",Revenue,STONEWELL PROPERTY COMPANY LTD,00118138
South Ribble Council,http://statistics.data.gov.uk/doc/local-authority/30UN,Planning,Capital Expenditure,C234,Ecological Surveys and assessments of the Central Parks,16/09/2016,0000426218,"3,510.00",Revenue,TAMESIDE METROPOLITAN BOROUGH COUNCIL,00037293
South Ribble Council,http://statistics.data.gov.uk/doc/local-authority/30UN,Area 2 - Waste Transport/Eastern & Central Teams,Materials General,4040,1 SWITCH - PJ62UCG - JFC7377 - GA,07/09/2016,0000426569,340.19,Revenue,TERBERG MATEC UK LTD,00058625
South Ribble Council,http://statistics.data.gov.uk/doc/local-authority/30UN,Area 2 - Waste Transport/Eastern & Central Teams,Materials General,4040,SPEC REPAIR - PJ62UCL - JFC 7471,30/09/2016,0000426818,387.37,Revenue,TERBERG MATEC UK LTD,00058625
South Ribble Council,http://statistics.data.gov.uk/doc/local-authority/30UN,Area 2 - Waste Transport/Eastern & Central Teams,External Contractors Charges,4570,SPEC REPAIR - PJ62UCH - JFC 7495,23/09/2016,0000426953,573.82,Revenue,TERBERG MATEC UK LTD,00058625
South Ribble Council,http://statistics.data.gov.uk/doc/local-authority/30UN,Property Services,Rep & Maint Premises,2020,"2016 / 2017 annual service contract for the outer, middle & inner bi-part slider, the double power swing door  at the civic centre",30/09/2016,0000427001,285.00,Revenue,THE AUTOMATIC DOOR COMPANY LTD,00108533
South Ribble Council,http://statistics.data.gov.uk/doc/local-authority/30UN,Property Services,Rep & Maint Premises,2020,"2016 / 2017 service contract for the caf� door 1, caf� door 2, car park entrance left & right, sliding doors at Leyland market",30/09/2016,0000427001,260.00,Revenue,THE AUTOMATIC DOOR COMPANY LTD,00108533
South Ribble Council,http://statistics.data.gov.uk/doc/local-authority/30UN,Democratic Services,Other Misc,4421,USE OF PORTACABIN IN CAR PARK FOR A POLLING STATION FOR THE EU REFERENDUM ON 23 JUNE 2016 ACCESS ,09/09/2016,0000426672,250.83,Revenue,THE HUNTERS,131487
South Ribble Council,http://statistics.data.gov.uk/doc/local-authority/30UN,HR & Communications,Training Expense-Course Fees,1405,NAME REDACTED - ATTENDANCE AT CHEIF EXECUTIVE MANAGEMENT SEMINAR 9TH AND 10TH JUNE 2016,14/09/2016,0000426770,365.00,Revenue,THE IN PRACTICE PARTNERSHIP,130682
South Ribble Council,http://statistics.data.gov.uk/doc/local-authority/30UN,Legal,Publications,4142,aldridge R48,14/09/2016,0000426497,408.00,Revenue,THOMSON REUTERS,00034979
South Ribble Council,http://statistics.data.gov.uk/doc/local-authority/30UN,Healthy Communities,Sports Dev Expenses,4894,Price for printing A5 full colour leaflets on 130gsm silk: Athletics - 500 Multi Skills - 500 Hockey - 1000 Football - 1000 Tennis - ,07/09/2016,0000426533,560.00,Revenue,TOWNSEND PRINT SERVICES LTD,00037170
South Ribble Council,http://statistics.data.gov.uk/doc/local-authority/30UN,Area 3 - Parks/Leyland East West,Operational Furniture & Equip,4010,Quazar Triangle MAW Sign c/w HC Variant 750mm - QZ750VAR/MAW/HC,30/09/2016,0000426721,889.00,Revenue,Tudor (UK) Ltd t/a Tudor Environmental,132062
South Ribble Council,http://statistics.data.gov.uk/doc/local-authority/30UN,Regeneration,Capital Expenditure,C234,Footpath works linking to main carriageway/gateway feature,16/09/2016,0000426780,"4,000.00",Revenue,ULNES WALTON BRIDLEWAY ASSOCIATION,130928
South Ribble Council,http://statistics.data.gov.uk/doc/local-authority/30UN,Property Services,Water Charges,2511,15/5/16 to 14/8/16,07/09/2016,0000426551,"6,577.29",Revenue,UNITED UTILITIES WATER PLC,00029845
South Ribble Council,http://statistics.data.gov.uk/doc/local-authority/30UN,Property Services,Water Charges,2511,14/5/16 to 13/8/16,07/09/2016,0000426573,"3,158.15",Revenue,UNITED UTILITIES WATER PLC,00029845
South Ribble Council,http://statistics.data.gov.uk/doc/local-authority/30UN,Property Services,Rep & Maint Premises,2020,"Please attend Bamber Bridge Leisure Centre on 8th September, sign on site at reception area. Please wear PPE throughout",21/09/2016,0000426911,"1,750.00",Revenue,UNIVERSAL COOLING LTD,130914
South Ribble Council,http://statistics.data.gov.uk/doc/local-authority/30UN,Property Services,Operational Furniture & Equip,4012,2016 / 2017 rental fees for vending machines at the Civic Centre from September 2016 to March 2017,07/09/2016,0000426493,322.09,Revenue,VENDING ENTERPRISES,00101501
South Ribble Council,http://statistics.data.gov.uk/doc/local-authority/30UN,Property Services,Operational Furniture & Equip,4010,"South Ribble Borough Council VAT No GB155 6733 48. Se`il vous plais pouvez vous fornir Mur 2/3 pano standard 2,9m pvc 450g",30/09/2016,0000427063,774.41,Revenue,VITABRI S A,00121727
South Ribble Council,http://statistics.data.gov.uk/doc/local-authority/30UN,Information Services,Peripherals,4269,"Annual purchase order for ISDN lines, line rentals & call charges for period 01/04/16 - 31/03/17",07/09/2016,0000426583,"1,395.51",Revenue,VODAFONE RE:CABLE & WIRELESS UK,130810
South Ribble Council,http://statistics.data.gov.uk/doc/local-authority/30UN,Information Services,Peripherals,4247,"Annual purchase order for link, internet & router for period 01/04/16 - 31/03/17",07/09/2016,0000426606,"1,312.66",Revenue,VODAFONE RE:CABLE & WIRELESS UK,130810
South Ribble Council,http://statistics.data.gov.uk/doc/local-authority/30UN,Information Services,Peripherals,4269,"Annual purchase order for ISDN lines, line rentals & call charges for period 01/04/16 - 31/03/17",30/09/2016,0000427076,"1,260.29",Revenue,VODAFONE RE:CABLE & WIRELESS UK,130810
South Ribble Council,http://statistics.data.gov.uk/doc/local-authority/30UN,Revenues Plus,Postage,4291,Revenues mail services August 2016,07/09/2016,0000426635,549.64,Revenue,WHISTL  UK LTD,131310
South Ribble Council,http://statistics.data.gov.uk/doc/local-authority/30UN,Revenues Plus,Postage,4291,Revenues mail services September 2016,14/09/2016,0000426769,347.85,Revenue,WHISTL  UK LTD,131310
South Ribble Council,http://statistics.data.gov.uk/doc/local-authority/30UN,Revenues Plus,Postage,4291,Revenues mail services September 2016,21/09/2016,0000426880,480.10,Revenue,WHISTL  UK LTD,131310
South Ribble Council,http://statistics.data.gov.uk/doc/local-authority/30UN,Area 3 - Parks/Leyland East West,Grounds Maint Cntrctrs Chgs,4657,1X 2540-003 BEARING ASSEMBLY - REVOLVA,09/09/2016,0000426650,947.00,Revenue,WICKSTEED LEISURE LTD,00038661
South Ribble Council,http://statistics.data.gov.uk/doc/local-authority/30UN,Area 3 - Parks/Leyland East West,Grounds Maint Cntrctrs Chgs,4657,CARRIAGE,09/09/2016,0000426650,80.50,Revenue,WICKSTEED LEISURE LTD,00038661
South Ribble Council,http://statistics.data.gov.uk/doc/local-authority/30UN,Area 3 - Parks/Leyland East West,External Contractors Charges,4570,SHALLOW SURFACE ROTOVATION TO VARIOUS SITES,21/09/2016,0000426817,500.00,Revenue,WILLIAM METCALFE & SONS,00029573
South Ribble Council,http://statistics.data.gov.uk/doc/local-authority/30UN,Area 3 - Parks/Leyland East West,External Contractors Charges,4570,Western Drive Open Space - Pump out water/backfill excavation/seed/construct swale and bund as per quotation ref 15934 rev,23/09/2016,0000425494,"1,895.00",Revenue,WILLIAM PYE LTD,00031590
South Ribble Council,http://statistics.data.gov.uk/doc/local-authority/30UN,Area 3 - Parks/Leyland East West,Grounds Maint Cntrctrs Chgs,4657,Parkgate Drive Flooding - Worden Park. As per Quotation ref 15935,30/09/2016,0000426834,"2,260.00",Revenue,WILLIAM PYE LTD,00031590
South Ribble Council,http://statistics.data.gov.uk/doc/local-authority/30UN,Area 3 - Parks/Leyland East West,Grounds Maint Cntrctrs Chgs,4657,"50 no. BLUE, RED & YELLOW/BLACK WAY MARKER DISCS",14/09/2016,0000426528,340.00,Revenue,WOODSTOCK SIGNS,00039039
South Ribble Council,http://statistics.data.gov.uk/doc/local-authority/30UN,Area 3 - Parks/Leyland East West,Grounds Maint Cntrctrs Chgs,4657,2 no. ALTERNATIVE CAR PARK LARGE OVERLAYS,14/09/2016,0000426528,100.00,Revenue,WOODSTOCK SIGNS,00039039
South Ribble Council,http://statistics.data.gov.uk/doc/local-authority/30UN,Development Enterprise & Comm Mgnt,Other Misc,485K,"Copywrite, project manage, design, print (750 copies) and upload e-version of the Summer 2016 edition of the Invest ",09/09/2016,0000426691,"3,320.00",Revenue,WRITE ANGLE PR & MARKETING LTD,00095303
